bitfinex/quotes_BTCUSD_20230403
["timestamp","ask_amount","ask_price","bid_price","bid_amount"]
[1680509848373,0.28206153,28277.0,28239.0,0.470638]
[1680509848374,0.0015,28271.0,28239.0,0.470638]
[1680509848606,0.08353689,28275.0,28266.0,0.35497497]
[1680509848607,0.54304567,28275.0,28266.0,0.35497497]
[1680509848842,0.00598457,28266.0,28246.0,0.35]
[1680509849075,0.00598457,28266.0,28238.0,0.00014]
[1680509849076,0.14197487,28265.0,28256.0,0.35]
[1680509849305,0.14197487,28265.0,28252.0,0.035395]
[1680509849542,0.14197487,28265.0,28253.0,1.29615855]
[1680509849543,0.01419749,28264.0,28253.0,1.29615855]
[1680509849778,0.01419749,28264.0,28245.0,0.2275486]
[1680509849779,0.35497497,28254.0,28245.0,0.2275486]
[1680509850012,0.35497497,28247.0,28246.0,1.27361675]
[1680509850248,0.35497497,28247.0,28237.0,0.31]
[1680509850249,0.1333,28246.0,28237.0,0.31]
[1680509850507,0.35497497,28243.0,28232.0,0.01771]
[1680509850734,0.35497497,28243.0,28212.0,1.2]
[1680509850735,0.55504487,28242.0,28237.0,6e-05]
[1680509850958,0.17708,28238.0,28217.0,0.04999999]
[1680509851183,0.1331,28218.0,28217.0,0.04999999]
[1680509851414,0.34234397,28218.0,28217.0,0.04999999]
[1680509851663,0.56939597,28218.0,28217.0,0.05011999]
[1680509851893,0.20924397,28218.0,28217.0,0.04999999]
[1680509852135,0.0674491,28218.0,28217.0,0.07325999]
[1680509852364,0.0572691,28218.0,28217.0,0.04499999]
[1680509852598,0.0574491,28218.0,28217.0,0.42331396]
[1680509852821,0.0572691,28218.0,28217.0,0.42331396]
[1680509853055,0.0572691,28218.0,28217.0,0.08533899]
[1680509853294,0.0521359,28218.0,28217.0,0.42331396]
[1680509853514,0.0521359,28218.0,28217.0,0.09133899]
[1680509853745,0.0521359,28218.0,28217.0,0.06833899]
[1680509854195,0.0521359,28218.0,28217.0,0.07842222]
[1680509854419,0.0521359,28218.0,28217.0,0.04743315]
[1680509855118,0.0521359,28218.0,28217.0,0.03043315]
[1680509855359,0.0521359,28218.0,28217.0,0.05343315]
[1680509855617,0.0521359,28218.0,28217.0,0.03043315]
[1680509855850,0.0521359,28218.0,28217.0,0.57259812]
[1680509856095,0.02398,28235.0,28234.0,0.472828]
[1680509856326,0.3091426,28244.0,28234.0,0.472828]
[1680509856327,0.0271829,28244.0,28238.0,0.5774]
[1680509856567,0.0271829,28244.0,28243.0,0.472828]
[1680509856568,0.0273029,28244.0,28243.0,0.472828]
[1680509856802,0.0273029,28244.0,28241.0,0.35497497]
[1680509856803,0.00234072,28243.0,28242.0,0.00012]
[1680509857029,0.00234072,28243.0,28233.0,0.00018]
[1680509857030,0.30977217,28234.0,28233.0,0.00018]
[1680509857274,0.00012,28231.0,28230.0,0.00012]
[1680509857498,0.46795571,28234.0,28232.0,0.472828]
[1680509857733,0.32610084,28234.0,28233.0,0.024262]
[1680509857960,0.32598084,28234.0,28230.0,0.00018]
[1680509858233,0.49694984,28233.0,28228.0,0.473008]
[1680509858458,0.49694984,28233.0,28229.0,0.850228]
[1680509858459,0.00012,28231.0,28229.0,0.850228]
[1680509858692,0.00012,28231.0,28230.0,0.022803]
[1680509858918,0.00012,28231.0,28229.0,0.00018]
[1680509858919,0.227052,28235.0,28229.0,0.472828]
[1680509859152,0.00012,28234.0,28230.0,0.37915797]
[1680509859390,0.00012,28234.0,28229.0,0.472828]
[1680509859391,0.00021157,28233.0,28231.0,0.37759197]
[1680509859608,0.00021157,28233.0,28232.0,1.023169]
[1680509859842,0.00021157,28233.0,28232.0,1.37814397]
[1680509860080,1.57e-06,28233.0,28232.0,1.39585397]
[1680509860326,0.0273029,28244.0,28239.0,0.472828]
[1680509860570,0.0273029,28244.0,28232.0,1.12302597]
[1680509860571,0.0273629,28244.0,28242.0,0.472828]
[1680509860824,0.00012,28238.0,28236.0,0.00018]
[1680509861058,0.00012,28238.0,28231.0,0.003]
[1680509861059,0.227052,28232.0,28231.0,0.003]
[1680509861300,0.262714,28232.0,28231.0,0.003]
[1680509861537,0.262594,28232.0,28231.0,0.003]
[1680509861771,0.61756897,28232.0,28222.0,0.473008]
[1680509862021,0.00018,28233.0,28226.0,0.472828]
[1680509862022,0.00012,28228.0,28226.0,0.472828]
[1680509862262,6e-05,28232.0,28229.0,0.472828]
[1680509862489,6e-05,28232.0,28229.0,0.473008]
[1680509862490,0.35497497,28232.0,28229.0,0.473008]
[1680509862737,0.35497497,28231.0,28229.0,0.473008]
[1680509862975,0.00012,28230.0,28229.0,0.00018]
[1680509863202,0.00012,28230.0,28220.0,0.07733026]
[1680509863203,0.00012,28226.0,28224.0,0.00018]
[1680509863433,0.00012,28226.0,28222.0,0.473008]
[1680509863661,0.14197487,28225.0,28222.0,0.473008]
[1680509864116,0.00012,28226.0,28225.0,0.472828]
[1680509864339,0.00018,28232.0,28225.0,0.472828]
[1680509864622,0.61196719,28231.0,28225.0,0.472828]
[1680509864846,0.0427,28230.0,28229.0,0.002]
[1680509865071,0.0427,28230.0,28225.0,0.472828]
[1680509865072,0.38917497,28230.0,28225.0,0.472828]
[1680509865295,0.00012,28230.0,28225.0,0.019834]
[1680509865519,0.227232,28236.0,28227.0,0.472828]
[1680509865757,0.177,28248.0,28227.0,0.472828]
[1680509865758,0.06094664,28250.0,28243.0,0.472828]
[1680509865992,0.00018,28249.0,28243.0,1.39267347]
[1680509866243,0.02398,28250.0,28249.0,1.5466885]
[1680509866244,0.01681953,28250.0,28249.0,1.5466885]
[1680509866475,0.27921445,28277.0,28276.0,0.4692885]
[1680509866707,0.35515497,28277.0,28275.0,0.4694685]
[1680509866942,0.0036595,28277.0,28276.0,0.023724]
[1680509867180,0.0036595,28277.0,28275.0,0.00018]
[1680509867419,0.00012,28281.0,28280.0,0.6692885]
[1680509867659,0.0278195,28292.0,28283.0,0.4451885]
[1680509867886,0.0277595,28289.0,28283.0,0.4685545]
[1680509868104,0.0277595,28292.0,28283.0,0.4685545]
[1680509868344,0.0242595,28292.0,28285.0,0.1757405]
[1680509868581,0.35497497,28291.0,28285.0,0.1757405]
[1680509868823,0.35497497,28291.0,28290.0,0.63549073]
[1680509868824,0.00795603,28291.0,28290.0,0.63549073]
[1680509869060,0.00128263,28297.0,28290.0,0.02239]
[1680509869061,0.24056335,28297.0,28290.0,0.02239]
[1680509869297,0.24056335,28297.0,28289.0,6e-05]
[1680509869298,0.35497497,28296.0,28289.0,6e-05]
[1680509869538,0.24056335,28297.0,28287.0,0.022926]
[1680509869539,0.02577907,28291.0,28287.0,0.022926]
[1680509869773,0.02577907,28291.0,28290.0,0.78776779]
[1680509870027,0.25429916,28300.0,28296.0,0.2]
[1680509870254,0.017646,28335.0,28311.0,1.2]
[1680509870490,0.8895,28340.0,28313.0,0.4186]
[1680509870730,0.8895,28340.0,28314.0,0.35497497]
[1680509870731,0.00431018,28322.0,28314.0,0.35497497]
[1680509871002,0.00431018,28322.0,28316.0,0.17657]
[1680509871003,0.66912634,28321.0,28316.0,0.17657]
[1680509871230,0.66912634,28321.0,28303.0,0.070662]
[1680509871231,0.31678732,28321.0,28313.0,0.00012]
[1680509871462,0.00431018,28322.0,28315.0,0.4205]
[1680509871463,0.045695,28320.0,28315.0,0.4205]
[1680509871696,0.00431018,28322.0,28321.0,0.7]
[1680509871924,0.00018,28336.0,28330.0,1.19616]
[1680509872195,1.36470757,28348.0,28338.0,1.19616]
[1680509872196,0.00018,28342.0,28338.0,1.19616]
[1680509872424,0.35497497,28342.0,28339.0,0.011005]
[1680509872678,0.35497497,28342.0,28336.0,1.19616]
[1680509872679,0.42983838,28337.0,28336.0,1.19616]
[1680509872909,0.42983838,28337.0,28336.0,0.00018]
[1680509873129,0.78481335,28337.0,28336.0,1.19634]
[1680509873357,0.78481335,28337.0,28335.0,0.00012]
[1680509873358,0.43001838,28337.0,28335.0,0.00012]
[1680509873586,0.64694984,28336.0,28331.0,1.17246999]
[1680509873820,0.64694984,28336.0,28326.0,0.97246999]
[1680509873821,0.55515497,28336.0,28326.0,0.97246999]
[1680509874044,0.33730623,28336.0,28326.0,0.194161]
[1680509874265,0.31786881,28336.0,28326.0,0.15]
[1680509874492,0.31786881,28336.0,28333.0,0.97246999]
[1680509874726,0.42983838,28337.0,28334.0,0.35497497]
[1680509874961,0.27317838,28337.0,28336.0,0.35497497]
[1680509875207,8.38e-06,28338.0,28337.0,0.3]
[1680509875442,0.9309894,28350.0,28339.0,0.33211]
[1680509875684,0.35497497,28349.0,28339.0,0.33211]
[1680509875913,0.35497497,28340.0,28335.0,0.97246999]
[1680509876141,0.35497497,28340.0,28335.0,0.56681925]
[1680509876142,0.00018971,28336.0,28335.0,0.56681925]
[1680509876371,0.00018971,28336.0,28331.0,0.08496]
[1680509876590,0.00018971,28336.0,28334.0,0.12292878]
[1680509877064,9.71e-06,28336.0,28334.0,0.12292878]
[1680509877343,9.71e-06,28336.0,28335.0,0.35]
[1680509877571,0.14215487,28348.0,28344.0,0.12292878]
[1680509877817,0.050696,28347.0,28344.0,0.12292878]
[1680509878058,0.35497497,28347.0,28344.0,0.12292878]
[1680509878288,0.052247,28346.0,28344.0,0.12292878]
[1680509878526,0.35497497,28345.0,28344.0,0.12292878]
[1680509878755,0.40835197,28345.0,28342.0,0.12292878]
[1680509879028,0.054068,28344.0,28342.0,0.12292878]
[1680509879279,0.35497497,28343.0,28338.0,0.0849]
[1680509879548,0.35497497,28339.0,28334.0,0.00018]
[1680509879772,0.35,28334.0,28323.0,0.017653]
[1680509879993,0.2,28323.0,28311.0,0.12292878]
[1680509880227,0.2,28323.0,28309.0,0.12292778]
[1680509880228,0.35497497,28315.0,28309.0,0.12292778]
[1680509880456,0.55153784,28314.0,28312.0,0.12274678]
[1680509880680,0.052549,28313.0,28312.0,0.12256578]
[1680509880911,0.14197487,28313.0,28312.0,0.12238478]
[1680509881176,0.49694984,28313.0,28312.0,0.12220378]
[1680509881404,0.40979897,28313.0,28312.0,0.20668378]
[1680509881633,0.35515497,28313.0,28312.0,0.12166378]
[1680509881867,0.35515497,28313.0,28312.0,0.12148378]
[1680509882092,0.76651884,28313.0,28308.0,6e-05]
[1680509882323,0.35497497,28309.0,28305.0,0.01]
[1680509882580,0.65276987,28312.0,28305.0,0.01]
[1680509882581,0.35497497,28307.0,28305.0,0.01]
[1680509882809,0.40874497,28306.0,28305.0,0.01]
[1680509883048,0.00018,28307.0,28306.0,0.12148378]
[1680509883277,0.49688324,28307.0,28306.0,0.12148378]
[1680509883505,0.40498337,28307.0,28305.0,0.01]
[1680509883773,0.40498337,28307.0,28300.0,6e-05]
[1680509883774,0.2,28301.0,28300.0,6e-05]
[1680509884007,0.2,28297.0,28293.0,0.00018]
[1680509884237,0.54867784,28296.0,28293.0,0.00012]
[1680509884467,0.2,28310.0,28300.0,0.27829838]
[1680509884696,0.35497497,28309.0,28305.0,0.12136378]
[1680509884915,0.35515497,28309.0,28307.0,0.12136378]
[1680509885417,0.00018,28310.0,28309.0,0.2]
[1680509885655,0.00018,28321.0,28310.0,0.12136378]
[1680509885898,0.00268,28311.0,28310.0,0.13902478]
[1680509886137,0.00268,28311.0,28310.0,0.14254378]
[1680509886138,0.35745497,28311.0,28310.0,0.14254378]
[1680509886370,0.35745497,28311.0,28310.0,0.16032478]
[1680509886371,0.35655497,28311.0,28310.0,0.16032478]
[1680509886612,0.15,28328.0,28310.0,0.16032478]
[1680509886613,0.2,28336.0,28325.0,0.12136378]
[1680509886850,0.5,28343.0,28325.0,0.12166378]
[1680509886851,0.02317001,28326.0,28325.0,0.12166378]
[1680509887108,0.02317001,28326.0,28325.0,0.15718227]
[1680509887371,0.02317001,28326.0,28325.0,0.17854227]
[1680509887619,0.3774,28349.0,28341.0,0.12166378]
[1680509887849,0.35497497,28343.0,28341.0,0.12166378]
[1680509888078,0.40713497,28342.0,28333.0,0.00018]
[1680509888320,0.35497497,28334.0,28324.0,0.12184378]
[1680509888539,0.35497497,28330.0,28329.0,0.12184378]
[1680509888778,0.40700297,28330.0,28329.0,0.12184378]
[1680509889020,0.40682297,28330.0,28327.0,0.00018]
[1680509889260,0.35497497,28328.0,28323.0,0.02118]
[1680509889491,0.05001,28327.0,28318.0,0.00018]
[1680509889727,0.5774,28323.0,28315.0,0.02118]
[1680509889951,0.55497497,28320.0,28310.0,0.00018]
[1680509890174,0.55497497,28320.0,28310.0,0.017661]
[1680509890175,0.19696987,28319.0,28310.0,0.017661]
[1680509890407,0.35497497,28318.0,28313.0,0.2]
[1680509890639,0.35497497,28318.0,28306.0,0.5]
[1680509890640,0.73237497,28314.0,28305.0,0.00018]
[1680509890869,0.5774,28312.0,28296.0,0.94585514]
[1680509891101,0.49694984,28311.0,28304.0,0.017664]
[1680509891360,0.14215487,28311.0,28307.0,0.2]
[1680509891581,0.00018,28311.0,28308.0,0.017662]
[1680509891806,6e-05,28313.0,28308.0,0.02118]
[1680509892037,0.49694984,28312.0,28309.0,0.02118]
[1680509892274,0.49694984,28312.0,28308.0,0.017662]
[1680509892275,0.73237497,28310.0,28308.0,0.02118]
[1680509892501,0.3774,28308.0,28301.0,0.02118]
[1680509892739,0.35497497,28303.0,28301.0,0.01062]
[1680509892989,0.19470087,28302.0,28296.0,0.66736343]
[1680509893208,0.14197487,28301.0,28300.0,0.2]
[1680509893437,0.49712984,28301.0,28297.0,0.0108]
[1680509893676,0.19362587,28300.0,28299.0,0.01062]
[1680509893903,0.19362587,28300.0,28296.0,0.66736343]
[1680509893904,0.40680597,28300.0,28297.0,0.01062]
[1680509894136,0.35497497,28299.0,28298.0,1.27128968]
[1680509894354,0.00018,28299.0,28298.0,1.27128968]
[1680509894582,0.00018,28303.0,28298.0,1.28190968]
[1680509894809,0.35497497,28302.0,28299.0,1.27128968]
[1680509895050,0.35515497,28302.0,28300.0,0.017667]
[1680509895281,0.00018,28302.0,28301.0,1.27128968]
[1680509895514,0.2,28312.0,28301.0,1.28190968]
[1680509895515,0.00018,28308.0,28301.0,1.28190968]
[1680509895742,0.35497497,28304.0,28302.0,1.27128968]
[1680509895960,0.73255497,28304.0,28302.0,1.27128968]
[1680509896153,0.35515497,28304.0,28302.0,1.27128968]
[1680509896474,0.39067047,28304.0,28298.0,1.27146968]
[1680509896696,0.15047487,28303.0,28299.0,1.27122836]
[1680509896933,0.52805487,28303.0,28299.0,1.28184836]
[1680509897165,0.73237497,28300.0,28296.0,0.66736343]
[1680509897384,0.73237497,28297.0,28296.0,0.66736343]
[1680509897629,0.73237497,28297.0,28296.0,0.66754343]
[1680509897630,0.050791,28297.0,28296.0,0.66754343]
[1680509897861,0.00018,28303.0,28296.0,0.69565343]
[1680509898116,0.535317,28315.0,28296.0,0.69565343]
[1680509898117,6e-05,28307.0,28303.0,0.2]
[1680509898373,6e-05,28319.0,28316.0,0.2]
[1680509898604,0.02409,28330.0,28316.0,0.2]
[1680509898605,0.00018,28326.0,28325.0,0.19994]
[1680509898839,0.02409,28330.0,28325.0,0.19994]
[1680509898840,0.02409,28330.0,28328.0,0.19994]
[1680509899069,0.02409,28330.0,28329.0,0.27156239]
[1680509899298,0.02409,28330.0,28329.0,0.28218239]
[1680509899747,0.02409,28330.0,28329.0,0.28200239]
[1680509899976,0.00018,28339.0,28330.0,0.1]
[1680509900224,0.01764,28345.0,28329.0,0.29965139]
[1680509900225,0.00018,28340.0,28329.0,0.00754]
[1680509900452,0.35497497,28332.0,28331.0,0.01062]
[1680509900691,0.35497497,28332.0,28330.0,0.01062]
[1680509900937,0.00018,28334.0,28329.0,0.08499577]
[1680509901174,0.00012,28336.0,28331.0,0.01786649]
[1680509901392,0.02421,28339.0,28332.0,0.17579]
[1680509901597,0.35497497,28335.0,28332.0,0.18641]
[1680509901869,0.00018,28337.0,28333.0,0.01062]
[1680509902088,0.35497497,28336.0,28333.0,0.01062]
[1680509902338,0.73237497,28335.0,28328.0,0.00018]
[1680509902575,0.02421,28322.0,28321.0,0.00018]
[1680509902890,0.02421,28322.0,28312.0,6e-05]
[1680509902891,0.02421,28314.0,28312.0,6e-05]
[1680509903120,0.60161,28311.0,28309.0,0.00041369]
[1680509903339,0.428492,28310.0,28309.0,0.00023369]
[1680509903568,0.93394184,28310.0,28309.0,0.00023369]
[1680509904050,0.051092,28310.0,28309.0,0.54866066]
[1680509904318,0.00018,28318.0,28315.0,0.17579]
[1680509904604,0.0342,28347.0,28338.0,0.55319]
[1680509904843,0.00012,28347.0,28346.0,0.53076497]
[1680509905082,0.85623759,28350.0,28346.0,0.053097]
[1680509905307,0.35497497,28349.0,28346.0,0.00906]
[1680509905550,0.02421,28348.0,28347.0,0.36403497]
[1680509905788,0.35497497,28348.0,28338.0,0.15188]
[1680509906021,0.35497497,28348.0,28341.0,0.00018]
[1680509906022,0.04812,28342.0,28341.0,0.00018]
[1680509906261,0.54512984,28342.0,28341.0,6e-05]
[1680509906490,0.85623759,28350.0,28331.0,0.3459]
[1680509906725,0.14947487,28350.0,28346.0,0.15188]
[1680509906969,0.002188,28356.0,28354.0,0.5]
[1680509907211,1.60401719,28380.0,28372.0,0.2]
[1680509907448,0.04096207,28372.0,28360.0,0.2]
[1680509907689,0.35497497,28368.0,28360.0,0.01763]
[1680509907950,0.35497497,28368.0,28354.0,0.00018]
[1680509907951,0.45497497,28364.0,28354.0,0.00018]
[1680509908189,0.45497497,28364.0,28350.0,0.19318908]
[1680509908190,0.3774,28358.0,28350.0,0.19318908]
[1680509908413,0.53394984,28357.0,28351.0,0.00906]
[1680509908642,0.53394984,28357.0,28350.0,0.19300908]
[1680509908643,0.037239,28356.0,28350.0,0.22828208]
[1680509908885,0.10018,28366.0,28352.0,0.00906]
[1680509909118,0.0940209,28356.0,28351.0,0.00906]
[1680509909336,0.0940209,28356.0,28353.0,0.20906]
[1680509909561,0.35497497,28355.0,28354.0,0.021578]
[1680509909799,0.39128197,28355.0,28354.0,0.00906]
[1680509910019,0.1305079,28355.0,28354.0,0.20906]
[1680509910241,0.1305079,28355.0,28354.0,0.59426497]
[1680509910242,0.0940209,28355.0,28354.0,0.59426497]
[1680509910505,0.0940209,28355.0,28354.0,0.23929]
[1680509910738,0.0940209,28355.0,28354.0,0.24835]
[1680509910956,0.0940209,28355.0,28354.0,0.61213146]
[1680509911183,0.0940209,28355.0,28354.0,0.62137146]
[1680509911423,0.04078207,28372.0,28362.0,0.2]
[1680509911424,0.00018,28365.0,28362.0,0.2]
[1680509911644,0.04078207,28372.0,28364.0,0.17626]
[1680509911872,0.39575704,28372.0,28365.0,0.021678]
[1680509912129,0.35497497,28370.0,28365.0,0.00906]
[1680509912365,0.036029,28369.0,28363.0,0.2]
[1680509912598,0.35497497,28369.0,28367.0,0.2]
[1680509912835,0.35497497,28368.0,28367.0,0.2]
[1680509913076,0.35515497,28368.0,28363.0,0.20018]
[1680509913295,0.35515497,28368.0,28367.0,0.00906]
[1680509913532,0.1,28367.0,28356.0,0.13794313]
[1680509913766,0.35497497,28364.0,28357.0,0.00906]
[1680509914006,0.35497497,28358.0,28357.0,0.00906]
[1680509914234,0.35497497,28358.0,28356.0,0.13794313]
[1680509914235,0.53337784,28358.0,28356.0,0.13794313]
[1680509914473,0.17947787,28357.0,28356.0,0.13794313]
[1680509914709,0.54295284,28357.0,28356.0,0.13794313]
[1680509915201,0.40097797,28357.0,28356.0,0.13794313]
[1680509915432,0.77855797,28357.0,28356.0,0.13794313]
[1680509915695,0.40115797,28357.0,28356.0,0.13794313]
[1680509916148,0.40097797,28357.0,28356.0,0.13794313]
[1680509916369,0.3774,28355.0,28354.0,0.00018]
[1680509916590,0.77735197,28355.0,28353.0,0.0045]
[1680509916819,0.038516,28354.0,28353.0,0.0045]
[1680509917036,0.038516,28354.0,28353.0,0.017634]
[1680509917274,0.00018,28366.0,28354.0,0.02152]
[1680509917509,0.3774,28363.0,28356.0,0.2]
[1680509917743,0.76833597,28362.0,28356.0,0.2]
[1680509917987,0.035899,28361.0,28359.0,0.2]
[1680509918241,0.02877,28365.0,28364.0,0.2]
[1680509918467,0.38356497,28365.0,28364.0,0.221164]
[1680509918697,0.76096497,28365.0,28364.0,0.00468]
[1680509918935,0.76096497,28365.0,28361.0,0.0045]
[1680509918936,0.79762697,28365.0,28361.0,0.0045]
[1680509919170,0.3774,28361.0,28360.0,0.0045]
[1680509919388,0.77093097,28361.0,28360.0,0.0045]
[1680509919629,0.77093097,28361.0,28357.0,0.00468]
[1680509919870,0.3774,28361.0,28357.0,0.00468]
[1680509920103,0.35497497,28358.0,28355.0,0.00018]
[1680509920331,0.73237497,28356.0,28350.0,0.2]
[1680509920549,0.73237497,28354.0,28351.0,0.0045]
[1680509920775,0.18725787,28353.0,28351.0,0.0045]
[1680509921005,0.39096597,28352.0,28351.0,0.0045]
[1680509921232,0.38970735,28352.0,28351.0,0.2]
[1680509921458,0.39820735,28352.0,28351.0,0.0045]
[1680509921690,0.39820735,28352.0,28346.0,0.0045]
[1680509921912,1.01863284,28351.0,28345.0,0.2045]
[1680509922184,0.415164,28350.0,28347.0,0.0045]
[1680509922407,0.60544984,28351.0,28349.0,0.2]
[1680509922408,0.00018,28351.0,28349.0,0.2]
[1680509922638,0.00018,28361.0,28350.0,0.239788]
[1680509922858,0.017631,28358.0,28350.0,0.0045]
[1680509923080,0.35497497,28354.0,28351.0,0.0045]
[1680509923321,0.11943196,28350.0,28347.0,0.20018]
[1680509923565,0.11943196,28350.0,28347.0,0.2]
[1680509923795,0.047756,28349.0,28348.0,0.00228]
[1680509924044,0.00228,28348.0,28343.0,6e-05]
[1680509924271,0.35497497,28344.0,28339.0,0.00018]
[1680509924488,0.35497497,28344.0,28337.0,0.02208]
[1680509924489,0.55859587,28343.0,28337.0,0.02208]
[1680509924717,0.55859587,28343.0,28338.0,0.00228]
[1680509924718,0.14197487,28343.0,28338.0,0.00228]
[1680509924944,0.0085,28342.0,28338.0,0.00228]
[1680509925625,0.73237497,28341.0,28338.0,0.00228]
[1680509925886,0.045174,28340.0,28338.0,0.00228]
[1680509926120,0.39244797,28339.0,28338.0,0.00228]
[1680509926361,0.39244797,28339.0,28338.0,0.2]
[1680509926583,0.76984797,28339.0,28338.0,0.20228]
[1680509926809,0.92032284,28339.0,28337.0,0.02208]
[1680509927036,0.39331197,28338.0,28337.0,0.2]
[1680509927267,0.35515497,28338.0,28337.0,0.2]
[1680509927492,0.39260397,28338.0,28337.0,0.20114]
[1680509927733,0.39260397,28338.0,28330.0,0.19614]
[1680509927734,0.3774,28336.0,28330.0,0.19614]
[1680509927965,0.2,28337.0,28329.0,0.0219]
[1680509927966,0.005,28333.0,28329.0,0.0219]
[1680509928197,0.037788,28332.0,28329.0,0.2169]
[1680509928443,0.35497497,28332.0,28329.0,0.234549]
[1680509928690,0.35497497,28332.0,28329.0,0.234729]
[1680509928931,0.00018,28333.0,28329.0,0.21708]
[1680509929151,0.195,28337.0,28330.0,0.00114]
[1680509929394,0.35497497,28331.0,28323.0,0.00018]
[1680509929624,0.73237497,28327.0,28326.0,0.1669]
[1680509929846,0.77040097,28327.0,28326.0,0.1669]
[1680509930086,0.35515497,28327.0,28326.0,0.16804]
[1680509930303,0.36365497,28327.0,28326.0,0.16804]
[1680509930535,0.35515497,28327.0,28326.0,0.16804]
[1680509931017,0.35497497,28327.0,28326.0,0.16804]
[1680509931254,0.36347497,28327.0,28326.0,0.16804]
[1680509931491,0.74087497,28327.0,28326.0,0.16822]
[1680509931716,0.77659397,28327.0,28326.0,0.16804]
[1680509931941,0.39069397,28327.0,28326.0,0.16804]
[1680509932163,0.35515497,28327.0,28326.0,0.16804]
[1680509932617,0.73255497,28327.0,28326.0,0.110649]
[1680509932845,0.77008197,28327.0,28326.0,0.110649]
[1680509933291,0.77008197,28327.0,28323.0,0.00018]
[1680509933292,0.78773297,28327.0,28323.0,0.00018]
[1680509933556,0.73237497,28324.0,28322.0,0.110649]
[1680509933790,0.87434984,28324.0,28323.0,0.00114]
[1680509934019,0.76843897,28324.0,28323.0,0.00114]
[1680509934251,0.77693897,28324.0,28320.0,0.00114]
[1680509934483,0.87434984,28324.0,28323.0,0.00114]
[1680509934712,0.036149,28324.0,28323.0,0.017653]
[1680509934906,0.00018,28333.0,28325.0,0.109509]
[1680509935170,0.35497497,28332.0,28331.0,0.109509]
[1680509935390,0.39190797,28332.0,28331.0,0.109509]
[1680509935615,0.73255497,28332.0,28331.0,0.109509]
[1680509935842,0.39100097,28332.0,28331.0,0.110649]
[1680509936070,0.35515497,28332.0,28331.0,0.110649]
[1680509936526,0.35497497,28332.0,28331.0,0.109509]
[1680509936764,0.39213697,28332.0,28331.0,0.109509]
[1680509937004,0.39213697,28332.0,28328.0,0.00132]
[1680509937232,0.3774,28328.0,28327.0,0.110649]
[1680509937477,0.77034697,28328.0,28327.0,0.110649]
[1680509937703,0.77884697,28328.0,28327.0,0.110649]
[1680509937941,0.00361,28336.0,28335.0,0.7]
[1680509938183,0.00361,28336.0,28335.0,1.14086797]
[1680509938440,0.11961196,28350.0,28349.0,0.109509]
[1680509938685,0.47458693,28350.0,28349.0,0.109509]
[1680509938926,0.50082093,28350.0,28343.0,0.110649]
[1680509939164,0.3774,28341.0,28330.0,0.017648]
[1680509939394,0.37722,28330.0,28328.0,0.9498991]
[1680509939627,0.600767,28329.0,28328.0,0.9498991]
[1680509939856,0.125712,28329.0,28328.0,0.9498991]
[1680509940083,0.59712984,28329.0,28328.0,0.9498991]
[1680509940314,1.00057584,28329.0,28328.0,0.9498991]
[1680509940552,1.11213137,28329.0,28328.0,0.9498991]
[1680509940777,1.01822484,28329.0,28328.0,0.30786652]
[1680509941009,1.05276997,28329.0,28328.0,0.30786652]
[1680509941310,0.87624997,28329.0,28328.0,0.30786652]
[1680509941543,1.05274997,28329.0,28328.0,6.52e-06]
[1680509941784,0.3774,28323.0,28318.0,0.00042936]
[1680509942012,0.75002997,28319.0,28318.0,0.00042936]
[1680509942252,0.80802386,28319.0,28318.0,0.00042936]
[1680509942563,0.3774,28342.0,28333.0,0.2]
[1680509942787,0.3774,28342.0,28340.0,0.08502051]
[1680509943027,0.13683873,28349.0,28337.0,0.08514703]
[1680509943028,0.3774,28341.0,28337.0,0.08514703]
[1680509943259,0.3774,28339.0,28338.0,0.14197487]
[1680509943489,0.73237497,28339.0,28338.0,0.00012652]
[1680509943733,0.73237497,28339.0,28334.0,0.00012652]
[1680509943952,0.73237497,28339.0,28334.0,0.08502051]
[1680509943953,0.3774,28337.0,28334.0,0.08502051]
[1680509944178,0.73237497,28335.0,28334.0,0.08502051]
[1680509944639,0.73237497,28335.0,28334.0,0.08556051]
[1680509944853,0.74087497,28335.0,28334.0,0.08502051]
[1680509945333,0.74087497,28335.0,28334.0,0.10333303]
[1680509945549,0.74087497,28335.0,28334.0,0.08568703]
[1680509945776,0.74087497,28335.0,28334.0,0.08556051]
[1680509946219,0.02926,28336.0,28334.0,0.08556051]
[1680509946410,0.35497497,28335.0,28334.0,0.08556051]
[1680509946668,0.35497497,28335.0,28334.0,0.08502051]
[1680509946885,0.35497497,28335.0,28334.0,0.08556051]
[1680509947323,0.03783,28336.0,28334.0,0.10333303]
[1680509947560,0.39280497,28336.0,28334.0,0.10333303]
[1680509947778,0.39280497,28336.0,28335.0,0.018186]
[1680509948006,0.39280497,28336.0,28335.0,0.21831252]
[1680509948463,0.03783,28336.0,28335.0,0.20012]
[1680509948680,0.03783,28336.0,28335.0,0.22139251]
[1680509949421,0.57286005,28352.0,28350.0,4.19285155]
[1680509949647,0.27769661,28352.0,28350.0,4.24899374]
[1680509949869,3.8837,28363.0,28355.0,0.417633]
[1680509950098,0.00018,28357.0,28355.0,1.44997636]
[1680509950342,3.8837,28363.0,28362.0,0.39982]
[1680509950567,3.88388,28364.0,28362.0,0.59480839]
[1680509950789,3.88388,28364.0,28363.0,0.14197487]
[1680509951015,3.88388,28364.0,28362.0,0.453247]
[1680509951016,0.37727348,28363.0,28362.0,0.19982]
[1680509951251,3.8837,28364.0,28362.0,0.34179487]
[1680509951474,3.3824,28364.0,28363.0,1.48225484]
[1680509951716,2.2526,28364.0,28363.0,0.75055484]
[1680509951935,2.2285,28364.0,28363.0,0.75055484]
[1680509952171,0.04078207,28372.0,28371.0,0.523184]
[1680509952403,0.04078207,28372.0,28371.0,1.19634384]
[1680509952404,8.207e-05,28372.0,28371.0,1.19634384]
[1680509952623,0.00018,28387.0,28374.0,0.2]
[1680509952624,0.02065281,28375.0,28374.0,0.2]
[1680509952844,0.02065281,28375.0,28374.0,0.59465887]
[1680509953068,0.02065281,28375.0,28374.0,0.59495887]
[1680509953302,0.02065281,28375.0,28369.0,0.17624]
[1680509953303,0.51458246,28375.0,28372.0,0.00018]
[1680509953532,0.73237497,28373.0,28368.0,0.00012]
[1680509953745,0.35497497,28372.0,28371.0,0.19982]